bitfinex-derivatives/quotes_BTCF0:USTF0_20260127
["timestamp","ask_amount","ask_price","bid_price","bid_amount"]
[1769490148477,0.21701167,88639.0,88621.0,0.11392883]
[1769490148478,0.11283179,88636.0,88621.0,0.11392883]
[1769490148682,0.21701167,88639.0,88625.0,0.11392883]
[1769490148683,0.10168,88639.0,88625.0,0.11392883]
[1769490154884,0.011295,88642.0,88625.0,0.11392883]
[1769490155385,0.011295,88640.0,88625.0,0.11392883]
[1769490155581,0.011296,88638.0,88625.0,0.11392883]
[1769490155781,0.011296,88636.0,88625.0,0.11392883]
[1769490159688,0.011296,88634.0,88625.0,0.11392883]
[1769490160090,0.011296,88638.0,88625.0,0.11392883]
[1769490160388,0.011296,88636.0,88625.0,0.11392883]
[1769490162994,0.011295,88640.0,88625.0,0.11392883]
[1769490163391,0.011295,88643.0,88625.0,0.11392883]
[1769490163895,0.12412043,88643.0,88625.0,0.11392883]
[1769490164294,0.11282543,88643.0,88627.0,0.11392883]
[1769490164496,0.11282543,88643.0,88629.0,0.11392883]
[1769490165191,0.11282543,88643.0,88631.0,0.11392883]
[1769490165497,0.1984,88649.0,88631.0,0.11392883]
[1769490165698,0.011294,88648.0,88631.0,0.11392883]
[1769490165893,0.1241137,88648.0,88631.0,0.11392883]
[1769490168498,0.1128197,88648.0,88631.0,0.11392883]
[1769490169196,0.1984,88649.0,88631.0,0.11392883]
[1769490169402,0.1984,88649.0,88631.0,0.12522483]
[1769490169703,0.11281652,88648.0,88631.0,0.12522483]
[1769490171304,0.11281652,88648.0,88633.0,0.011296]
[1769490171602,0.11281652,88648.0,88634.0,0.11392883]
[1769490172502,0.1984,88649.0,88636.0,0.11065645]
[1769490172696,0.11563664,88655.0,88636.0,0.11065645]
[1769490173102,0.11281461,88654.0,88636.0,0.11065645]
[1769490173802,0.011294,88653.0,88636.0,0.11065645]
[1769490177596,0.011293,88655.0,88640.0,0.11065645]
[1769490177803,0.10168,88656.0,88640.0,0.11065645]
[1769490178604,0.011293,88655.0,88640.0,0.11065645]
[1769490178817,0.11563664,88650.0,88631.0,0.112976]
[1769490179017,0.11563664,88650.0,88631.0,0.22363245]
[1769490179216,0.11563664,88650.0,88632.0,0.11065645]
[1769490180412,0.12693064,88649.0,88632.0,0.11065645]
[1769490180617,0.011296,88636.0,88624.0,0.21233645]
[1769490180918,0.12693264,88636.0,88624.0,0.11065645]
[1769490181814,0.11563664,88636.0,88624.0,0.11065645]
[1769490183714,0.11563664,88636.0,88623.0,0.10168]
[1769490183913,0.11563664,88636.0,88623.0,0.21233645]
[1769490189127,0.11563664,88640.0,88624.0,0.11065645]
[1769490190930,0.12693164,88639.0,88624.0,0.11065645]
[1769490193629,0.11563664,88636.0,88623.0,0.10168]
[1769490193927,0.12693264,88635.0,88623.0,0.10168]
[1769490195720,0.11563664,88635.0,88620.0,0.11065645]
[1769490195921,0.11563664,88635.0,88621.0,0.10168]
[1769490197321,0.12693264,88635.0,88621.0,0.10168]
[1769490197930,0.11563664,88635.0,88621.0,0.10168]
[1769490198323,0.11563664,88633.0,88621.0,0.10168]
[1769490198930,0.11563664,88633.0,88621.0,0.21233645]
[1769490199531,0.011296,88632.0,88621.0,0.21233645]
[1769490199728,0.011297,88630.0,88621.0,0.21233645]
[1769490200031,0.011297,88630.0,88621.0,0.10168]
[1769490200233,0.12693364,88630.0,88621.0,0.10168]
[1769490201217,0.11563664,88630.0,88621.0,0.10168]
[1769490201825,0.11563664,88630.0,88616.0,0.11065645]
[1769490203033,0.011296,88633.0,88616.0,0.11065645]
[1769490203034,0.1178378,88635.0,88616.0,0.12195445]
[1769490203232,0.1178378,88639.0,88621.0,0.10966375]
[1769490203427,0.011295,88643.0,88625.0,0.10966375]
[1769490204023,0.11282861,88642.0,88625.0,0.10966375]
[1769490204234,0.10168,88645.0,88625.0,0.10966375]
[1769490204922,0.10168,88645.0,88627.0,0.10966375]
[1769490205127,0.10168,88645.0,88615.0,0.09036154]
[1769490205128,0.11282224,88644.0,88629.0,0.10966375]
[1769490206124,0.1178378,88657.0,88631.0,0.09804679]
[1769490206431,0.11282033,88654.0,88636.0,0.09804679]
[1769490206637,0.011294,88651.0,88636.0,0.09804679]
[1769490207134,0.1178378,88648.0,88634.0,0.10168]
[1769490207335,0.1291318,88647.0,88634.0,0.10168]
[1769490208732,0.1291318,88647.0,88635.0,0.096588]
[1769490208934,0.1178378,88647.0,88635.0,0.096588]
[1769490217038,0.1178378,88641.0,88624.0,0.10516157]
[1769490217238,0.1178378,88641.0,88625.0,0.20684157]
[1769490217438,0.1178378,88641.0,88626.0,0.10516157]
[1769490217645,0.16280444,88640.0,88626.0,0.10516157]
[1769490217849,0.28064224,88640.0,88626.0,0.10516157]
[1769490218846,0.1178378,88640.0,88626.0,0.10516157]
[1769490223442,0.011295,88643.0,88626.0,0.10516157]
[1769490223647,0.1178378,88645.0,88626.0,0.11645857]
[1769490227851,0.011294,88647.0,88626.0,0.11645857]
[1769490228650,0.1291318,88647.0,88626.0,0.11645857]
[1769490229351,0.1291328,88644.0,88626.0,0.11645857]
[1769490229552,0.1291328,88644.0,88626.0,0.10516157]
[1769490230653,0.011295,88644.0,88626.0,0.10516157]
[1769490232453,0.23224476,88648.0,88628.0,0.09363603]
[1769490232754,0.11282224,88647.0,88628.0,0.09363603]
[1769490233454,0.11282224,88647.0,88629.0,0.09766334]
[1769490234853,0.011295,88646.0,88629.0,0.09766334]
[1769490235054,0.13056576,88646.0,88629.0,0.09766334]
[1769490241455,0.13056576,88644.0,88629.0,0.09766334]
[1769490241756,0.13056576,88642.0,88629.0,0.09766334]
[1769490241957,0.13056576,88642.0,88628.0,0.10168]
[1769490242353,0.11927076,88639.0,88628.0,0.10168]
[1769490242561,0.11927076,88637.0,88626.0,0.10168]
[1769490242764,0.11927076,88632.0,88615.0,0.18693773]
[1769490243054,0.011297,88625.0,88613.0,0.41756]
[1769490243249,0.011297,88625.0,88614.0,0.10168]
[1769490243451,0.11927076,88626.0,88614.0,0.10168]
[1769490243957,0.13056776,88626.0,88612.0,0.49864]
[1769490244159,0.13056776,88626.0,88613.0,0.10168]
[1769490247951,0.11927076,88626.0,88613.0,0.10168]
[1769490248159,0.11927076,88626.0,88613.0,0.19227643]
[1769490249661,0.11927076,88626.0,88614.0,0.09110346]
[1769490249862,0.11927076,88631.0,88614.0,0.09110346]
[1769490253954,0.11927076,88629.0,88614.0,0.09110346]
[1769490254561,0.11927076,88627.0,88614.0,0.09110346]
[1769490254963,0.11927076,88627.0,88613.0,0.10168]
[1769490255158,0.11927076,88625.0,88613.0,0.10168]
[1769490266255,0.10168,88634.0,88604.0,0.09036154]
[1769490266256,0.12287776,88617.0,88604.0,0.09036154]
[1769490266469,0.12287776,88617.0,88605.0,0.5068]
[1769490267569,0.11157976,88617.0,88605.0,0.5068]
[1769490272574,0.11157976,88617.0,88605.0,0.59398567]
[1769490273868,0.11157976,88617.0,88605.0,0.5068]
[1769490276676,0.011298,88621.0,88605.0,0.5068]
[1769490276974,0.011298,88621.0,88605.0,0.6199996]
[1769490277377,0.10168,88623.0,88606.0,0.1131996]
[1769490278478,0.12287776,88621.0,88606.0,0.1131996]
[1769490282272,0.011298,88619.0,88606.0,0.1131996]
[1769490283983,0.11157976,88621.0,88606.0,0.1131996]
[1769490291882,0.12287776,88621.0,88606.0,0.1131996]
[1769490292082,0.11157976,88621.0,88606.0,0.1131996]
[1769490292882,0.10168,88623.0,88606.0,0.1131996]
[1769490293486,0.12424045,88628.0,88608.0,0.11524275]
[1769490293693,0.10168,88627.0,88608.0,0.11524275]
[1769490294393,0.12414152,88626.0,88608.0,0.11524275]
[1769490295495,0.23708497,88626.0,88608.0,0.11524275]
[1769490295892,0.011297,88629.0,88608.0,0.11524275]
[1769490296196,0.10168,88628.0,88608.0,0.11524275]
[1769490296896,0.011297,88627.0,88610.0,0.11524275]
[1769490297498,0.10168,88628.0,88610.0,0.11524275]
[1769490297699,0.011296,88634.0,88615.0,0.11524275]
[1769490297998,0.011296,88632.0,88615.0,0.11524275]
[1769490298198,0.12423945,88632.0,88615.0,0.11524275]
[1769490298597,0.11294345,88632.0,88615.0,0.11524275]
[1769490298789,0.011297,88628.0,88615.0,0.11524275]
[1769490298984,0.11294345,88631.0,88615.0,0.11524275]
[1769490300097,0.011297,88627.0,88615.0,0.11524275]
[1769490300898,0.011296,88630.0,88615.0,0.11524275]
[1769490301199,0.011297,88626.0,88615.0,0.11524275]
[1769490302199,0.011297,88629.0,88615.0,0.11524275]
[1769490302799,0.12424045,88629.0,88615.0,0.11524275]
[1769490309003,0.011296,88632.0,88615.0,0.11524275]
[1769490309501,0.12423945,88632.0,88615.0,0.11524275]
[1769490310408,0.011297,88630.0,88615.0,0.11524275]
[1769490311606,0.11294345,88632.0,88615.0,0.11524275]
[1769490312701,0.10168,88633.0,88615.0,0.11524275]
[1769490316402,0.011296,88632.0,88615.0,0.11524275]
[1769490318605,0.011296,88632.0,88603.0,0.13558715]
[1769490318606,0.11294345,88621.0,88606.0,0.20564338]
[1769490318809,0.11294345,88621.0,88606.0,0.11524275]
[1769490322720,0.0113,88606.0,88593.0,0.10958135]
[1769490323214,0.0113,88606.0,88594.0,0.00652107]
[1769490323616,0.12019489,88611.0,88594.0,0.00652107]
[1769490324816,0.12019489,88611.0,88595.0,0.09085932]
[1769490327524,0.011299,88609.0,88595.0,0.09085932]
[1769490327832,0.10889589,88609.0,88593.0,0.10958135]
[1769490329023,0.12019489,88609.0,88593.0,0.19387339]
[1769490329224,0.12019489,88609.0,88594.0,0.08429204]
[1769490333129,0.12019489,88609.0,88593.0,0.10958135]
[1769490333327,0.10889589,88604.0,88593.0,0.10958135]
[1769490334629,0.10889589,88604.0,88585.0,0.011302]
[1769490335532,0.10889589,88604.0,88585.0,0.12120681]
[1769490336244,0.10889589,88602.0,88585.0,0.12120681]
[1769490336433,0.10889589,88602.0,88585.0,0.10990481]
[1769490339535,0.10889589,88602.0,88590.0,0.16292577]
[1769490339833,0.12019589,88602.0,88585.0,0.10990481]
[1769490343748,0.10889589,88598.0,88585.0,0.10990481]
[1769490344335,0.10889589,88598.0,88582.0,0.73098481]
[1769490344537,0.10889589,88598.0,88583.0,0.10990481]
[1769490347141,0.10889589,88598.0,88582.0,0.62108]
[1769490347441,0.10889589,88598.0,88582.0,0.10168]
[1769490349034,0.10889589,88598.0,88583.0,0.10990481]
[1769490349941,0.10889589,88598.0,88585.0,0.10990481]
[1769490351836,0.10889589,88598.0,88582.0,0.10168]
[1769490352842,0.10889589,88598.0,88582.0,0.21089154]
[1769490354746,0.11276522,88596.0,88582.0,0.21089154]
[1769490356745,0.11276522,88596.0,88575.0,0.13558715]
[1769490356746,0.11276522,88585.0,88571.0,0.09024338]
[1769490357140,0.11276522,88585.0,88570.0,0.35488915]
[1769490357341,0.11276522,88585.0,88570.0,0.26464577]
[1769490359041,0.11276522,88585.0,88570.0,0.10172]
[1769490360744,0.11276522,88585.0,88570.0,0.26464577]
[1769490362354,0.11276522,88585.0,88571.0,0.011304]
[1769490362955,0.11276522,88585.0,88570.0,0.26464577]
[1769490363557,0.11276522,88585.0,88570.0,0.10172]
[1769490363756,0.11276522,88585.0,88570.0,0.26464577]
[1769490365453,0.11276522,88585.0,88570.0,0.10172]
[1769490365758,0.11276522,88585.0,88570.0,0.26464577]
[1769490366847,0.11276522,88585.0,88572.0,0.011304]
[1769490370164,0.11276522,88585.0,88570.0,0.37385731]
[1769490370657,0.11276522,88585.0,88570.0,0.26464577]
[1769490370863,0.11276522,88585.0,88570.0,0.10172]
[1769490371064,0.11276522,88581.0,88570.0,0.10172]
[1769490371459,0.11285392,88580.0,88566.0,0.10921154]
[1769490371650,0.11276522,88565.0,88550.0,0.10921154]
[1769490371856,0.11276522,88564.0,88550.0,0.10921154]
[1769490372059,0.11276522,88564.0,88550.0,0.27213731]
[1769490372460,0.11276522,88562.0,88550.0,0.27213731]
[1769490372660,0.11276522,88562.0,88546.0,0.10921154]
[1769490374169,0.11376522,88562.0,88546.0,0.10921154]
[1769490375564,0.11276522,88562.0,88546.0,0.10921154]
[1769490376463,0.12407022,88562.0,88546.0,0.10921154]
[1769490376668,0.12407022,88562.0,88542.0,0.10921154]
[1769490376870,0.12407022,88562.0,88542.0,0.10796154]
[1769490377065,0.12407022,88562.0,88542.0,0.11926954]
[1769490377271,0.11276522,88562.0,88542.0,0.11926954]
[1769490378762,0.11276522,88562.0,88544.0,0.011307]
[1769490378958,0.11276522,88562.0,88545.0,0.10921154]
[1769490379161,0.11276522,88562.0,88550.0,0.16292577]
[1769490380064,0.11276522,88562.0,88545.0,0.10921154]
[1769490384576,0.11276522,88562.0,88545.0,0.10911154]
[1769490385173,0.00011523,88563.0,88540.0,0.26464577]
[1769490385174,0.10957059,88559.0,88540.0,0.26464577]
[1769490386677,0.10957059,88559.0,88541.0,0.11074206]
[1769490386873,0.10957059,88559.0,88541.0,0.12205006]
[1769490387068,0.10957059,88559.0,88543.0,0.12204906]
[1769490387272,0.12087659,88559.0,88540.0,0.26464577]
[1769490387472,0.10957059,88559.0,88541.0,0.011308]
[1769490387673,0.10957059,88559.0,88541.0,0.011258]
[1769490388073,0.10957059,88559.0,88543.0,0.011308]
[1769490388279,0.10957059,88559.0,88545.0,0.011307]
[1769490388788,0.10957059,88559.0,88543.0,0.11074206]
[1769490391781,0.10968582,88563.0,88550.0,0.11074206]
[1769490392080,0.00011523,88563.0,88550.0,0.11074206]
[1769490392283,0.10968582,88563.0,88550.0,0.11074206]
[1769490392479,0.10968582,88563.0,88549.0,0.16292577]
[1769490393579,0.10968582,88563.0,88545.0,0.12204906]
[1769490393781,0.10968582,88563.0,88550.0,0.16292577]
[1769490393982,0.10968582,88563.0,88550.0,0.27366783]
[1769490394975,0.10968582,88563.0,88546.0,0.11074206]
[1769490395987,0.10968582,88563.0,88548.0,0.11074206]
[1769490399386,0.10963582,88563.0,88548.0,0.11074206]
[1769490402780,0.011306,88559.0,88548.0,0.11074206]
[1769490402984,0.12087659,88559.0,88541.0,0.09024338]
[1769490403184,0.12087659,88559.0,88541.0,0.20098544]
[1769490403383,0.12087659,88559.0,88541.0,0.11074206]
[1769490404279,0.10957059,88555.0,88540.0,0.19196338]
[1769490405086,0.10957059,88555.0,88540.0,0.30270544]
[1769490405986,0.10957059,88555.0,88541.0,0.11074206]
[1769490407491,0.12087659,88555.0,88540.0,0.19196338]
[1769490407692,0.10957059,88545.0,88533.0,0.09024338]
[1769490407888,0.10957059,88545.0,88530.0,0.09024338]
[1769490408091,0.10957059,88545.0,88529.0,0.19200338]
[1769490408293,0.10957059,88545.0,88529.0,0.10176]
[1769490408693,0.10957059,88543.0,88526.0,0.09040982]
[1769490408895,0.10957059,88543.0,88523.0,0.11074206]
[1769490409091,0.12087859,88543.0,88523.0,0.11074206]
[1769490410795,0.10957059,88543.0,88523.0,0.12205206]
[1769490411393,0.10957059,88543.0,88527.0,0.11074206]
[1769490411593,0.21133059,88543.0,88527.0,0.11074206]
[1769490412695,0.21133059,88543.0,88527.0,0.12205206]
[1769490412696,0.10957059,88543.0,88527.0,0.12205206]
[1769490413999,0.10957059,88543.0,88527.0,0.11074206]
[1769490415199,0.12087859,88543.0,88527.0,0.11074206]
[1769490415398,0.10957059,88543.0,88527.0,0.11074206]
[1769490419105,0.12087859,88543.0,88527.0,0.11074206]
[1769490420597,0.011308,88540.0,88527.0,0.11074206]
[1769490420798,0.1274661,88538.0,88518.0,0.1083675]
[1769490421405,0.1161581,88538.0,88520.0,0.1083675]
[1769490422306,0.1161581,88538.0,88522.0,0.1083675]
[1769490422607,0.1161581,88538.0,88524.0,0.1083675]
[1769490424604,0.1161581,88538.0,88524.0,0.1196775]
[1769490425712,0.1161581,88543.0,88527.0,0.1083675]
[1769490426406,0.1161581,88541.0,88527.0,0.1083675]
[1769490430110,0.1274661,88541.0,88527.0,0.1083675]
[1769490432609,0.01137323,88544.0,88527.0,0.1083675]
[1769490433110,0.12753133,88544.0,88527.0,0.1083675]
[1769490438309,0.011308,88543.0,88527.0,0.1083675]
[1769490438515,0.1161581,88542.0,88527.0,0.1083675]
[1769490438715,0.1161581,88540.0,88527.0,0.1083675]
[1769490439214,0.1161581,88540.0,88523.0,0.2101275]
[1769490439415,0.1161581,88540.0,88524.0,0.1083675]
[1769490448623,0.10966654,88544.0,88524.0,0.1083675]
[1769490450119,0.10960131,88542.0,88524.0,0.1083675]
[1769490456731,0.10960131,88538.0,88524.0,0.1083675]
[1769490458430,0.12090931,88538.0,88524.0,0.1083675]
[1769490463930,0.10960131,88538.0,88524.0,0.1083675]
[1769490469935,0.011308,88537.0,88524.0,0.1083675]
[1769490470135,0.12090931,88537.0,88524.0,0.1083675]
[1769490470437,0.12090931,88537.0,88522.0,0.21090767]
[1769490470838,0.12090931,88537.0,88523.0,0.10914767]
[1769490472340,0.10960131,88537.0,88523.0,0.10914767]
[1769490474842,0.10960131,88537.0,88522.0,0.10176]
[1769490475336,0.10960131,88537.0,88522.0,0.21754704]
[1769490475840,0.10960131,88537.0,88523.0,0.11578704]
[1769490477038,0.11193499,88543.0,88527.0,0.27894798]
[1769490477242,6.523e-05,88544.0,88531.0,0.11578704]
[1769490477439,0.10176,88556.0,88537.0,0.11578704]
[1769490477646,0.11193499,88555.0,88541.0,0.11578704]
[1769490477850,0.12324099,88554.0,88541.0,0.11578704]
[1769490478747,0.12324099,88554.0,88540.0,0.16316094]
[1769490478933,0.10176,88556.0,88540.0,0.16316094]
[1769490478934,0.12324199,88551.0,88540.0,0.16316094]
[1769490479133,0.12324199,88551.0,88535.0,0.11578704]
[1769490479337,0.11193499,88551.0,88535.0,0.11578704]
[1769490486353,0.011307,88550.0,88535.0,0.11578704]
[1769490486848,0.12324199,88550.0,88535.0,0.11578704]
[1769490487551,0.011307,88547.0,88535.0,0.11578704]
[1769490487941,0.11193499,88550.0,88535.0,0.11578704]
[1769490488246,0.011307,88549.0,88535.0,0.11578704]
[1769490489641,0.12324199,88549.0,88535.0,0.11578704]
[1769490493651,0.011307,88547.0,88535.0,0.11578704]
[1769490494048,0.11193499,88549.0,88535.0,0.11578704]
[1769490494353,0.011307,88548.0,88535.0,0.11578704]
[1769490495046,0.11193499,88549.0,88535.0,0.11578704]
[1769490495250,0.011307,88551.0,88539.0,0.16316094]
[1769490495455,0.011307,88550.0,88540.0,0.16316094]
[1769490495641,0.011307,88549.0,88540.0,0.16316094]
[1769490495844,0.11193499,88551.0,88540.0,0.16316094]
[1769490496552,0.11193499,88551.0,88539.0,0.11578704]
[1769490497349,0.011307,88548.0,88539.0,0.11578704]
[1769490497744,0.11193499,88551.0,88539.0,0.11578704]
[1769490497949,0.011308,88544.0,88533.0,0.11578704]
[1769490499154,0.011307,88547.0,88533.0,0.11578704]
[1769490504656,0.12324199,88550.0,88533.0,0.11578704]
[1769490505157,0.12324199,88550.0,88540.0,0.16316094]
[1769490505759,0.11565855,88558.0,88541.0,0.11215915]
[1769490505955,0.011306,88553.0,88541.0,0.11215915]
[1769490506162,0.011306,88556.0,88541.0,0.11215915]
[1769490506361,0.011306,88554.0,88541.0,0.11215915]
[1769490507960,0.11565855,88556.0,88541.0,0.11215915]
[1769490508657,0.011306,88553.0,88541.0,0.11215915]
[1769490508872,0.11565855,88561.0,88541.0,0.11215915]
[1769490508873,0.011306,88554.0,88541.0,0.11215915]
[1769490511362,0.011306,88557.0,88541.0,0.11215915]
[1769490512560,0.113065,88560.0,88547.0,0.16316094]
[1769490512762,0.11565855,88565.0,88551.0,0.11215915]
[1769490512965,0.113065,88564.0,88551.0,0.11215915]
[1769490513261,0.22872355,88564.0,88551.0,0.11215915]
[1769490513562,0.11565855,88563.0,88551.0,0.11215915]
[1769490514560,0.011305,88562.0,88551.0,0.11215915]
[1769490515360,0.11565855,88563.0,88551.0,0.11215915]
[1769490516555,0.011305,88562.0,88551.0,0.11215915]
[1769490521759,0.21741855,88563.0,88551.0,0.11215915]
[1769490523166,0.10176,88563.0,88551.0,0.11215915]
[1769490524468,0.11565855,88567.0,88551.0,0.11215915]
[1769490524670,0.10176,88566.0,88556.0,0.11215915]
[1769490525375,0.10176,88566.0,88552.0,0.12346515]
[1769490525874,0.10176,88566.0,88552.0,0.11215915]
[1769490528477,0.21741855,88566.0,88552.0,0.11215915]
[1769490531882,0.11565855,88565.0,88552.0,0.11215915]
[1769490538185,0.10176,88566.0,88541.0,0.09039473]
[1769490538186,0.11378711,88562.0,88546.0,0.10896548]
[1769490539783,0.11378711,88562.0,88549.0,0.10896548]
[1769490540581,0.11378711,88562.0,88550.0,0.011307]
[1769490540786,0.11378711,88562.0,88550.0,0.12027248]
[1769490541192,0.11378711,88562.0,88550.0,0.10896548]
[1769490544984,0.11378711,88566.0,88551.0,0.12027248]
[1769490545491,0.11378711,88566.0,88551.0,0.10896548]
[1769490548992,0.11378711,88566.0,88552.0,0.011306]
[1769490549889,0.11378711,88566.0,88554.0,0.011306]
[1769490550392,0.11378711,88566.0,88551.0,0.12027148]
[1769490554096,0.11378711,88566.0,88551.0,0.10896548]
[1769490554493,0.11378711,88566.0,88547.0,0.10896548]
[1769490554695,0.11378711,88562.0,88547.0,0.10896548]
[1769490554895,0.011305,88561.0,88547.0,0.10896548]
[1769490556401,0.11378711,88562.0,88547.0,0.10896548]
[1769490559101,0.12509211,88562.0,88547.0,0.10896548]
[1769490560396,0.011305,88560.0,88547.0,0.10896548]
[1769490561802,0.011306,88558.0,88547.0,0.10896548]
[1769490567409,0.011306,88556.0,88547.0,0.10896548]
[1769490567908,0.12858833,88559.0,88547.0,0.10896548]
[1769490568709,0.12858833,88557.0,88543.0,0.10176]
[1769490568902,0.10176,88567.0,88538.0,0.1355921]
[1769490568903,0.12858933,88551.0,88539.0,0.09047604]
[1769490569215,0.011307,88545.0,88535.0,0.00652495]
[1769490569706,0.011308,88542.0,88535.0,0.00652495]
[1769490569908,0.11728233,88543.0,88535.0,0.00652495]
[1769490570803,0.12859033,88543.0,88535.0,0.00652495]
[1769490571206,0.12859033,88540.0,88535.0,9.5e-07]
[1769490571414,0.12859033,88540.0,88527.0,0.10176]
[1769490571714,0.12859033,88540.0,88527.0,0.21604568]
[1769490581321,0.11728233,88540.0,88527.0,0.10176]
[1769490581520,0.11728233,88538.0,88527.0,0.10176]
[1769490581721,0.011308,88537.0,88527.0,0.10176]
[1769490582221,0.11728233,88538.0,88527.0,0.10176]
[1769490582421,0.011308,88541.0,88528.0,0.11428568]
[1769490582618,0.011308,88539.0,88528.0,0.11428568]
[1769490584012,0.11728233,88542.0,88528.0,0.11428568]
[1769490584013,0.12859033,88542.0,88528.0,0.11428568]
[1769490584523,0.011308,88540.0,88528.0,0.11428568]
[1769490585025,0.11728233,88542.0,88528.0,0.11428568]
[1769490585425,0.12858933,88546.0,88531.0,0.11428568]
[1769490588826,0.011307,88545.0,88531.0,0.11428568]
[1769490589023,0.12858933,88545.0,88531.0,0.11428568]
[1769490589727,0.011308,88543.0,88531.0,0.11428568]
[1769490594421,0.11728233,88545.0,88531.0,0.11428568]
[1769490594821,0.011307,88544.0,88531.0,0.11428568]
[1769490595117,0.011308,88542.0,88531.0,0.11428568]
[1769490595521,0.11728233,88545.0,88531.0,0.11428568]
[1769490595926,0.011308,88542.0,88531.0,0.11428568]
[1769490598719,0.011308,88540.0,88531.0,0.11428568]
[1769490599633,0.011308,88538.0,88523.0,0.11396769]
[1769490600030,0.12950765,88541.0,88523.0,0.11396769]
[1769490600634,0.011308,88538.0,88523.0,0.11396769]
[1769490601134,0.11819965,88541.0,88523.0,0.11396769]
[1769490601931,0.011308,88540.0,88523.0,0.11396769]
[1769490602131,0.10176,88543.0,88523.0,0.11396769]
[1769490602834,0.21995965,88543.0,88523.0,0.11396769]
[1769490603334,0.011308,88539.0,88523.0,0.11396769]
[1769490604634,0.11819965,88542.0,88523.0,0.11396769]
[1769490606440,0.011308,88541.0,88523.0,0.11396769]
[1769490606834,0.011308,88538.0,88523.0,0.11396769]
[1769490607337,0.011308,88541.0,88523.0,0.11396769]
[1769490608434,0.10176,88543.0,88523.0,0.11396769]
[1769490608635,0.011308,88542.0,88523.0,0.11396769]
[1769490610134,0.011308,88541.0,88523.0,0.11396769]
[1769490611438,0.011308,88541.0,88530.0,0.16315588]
[1769490611633,0.011308,88541.0,88531.0,0.11396769]
[1769490612231,0.10176,88543.0,88531.0,0.11396769]
[1769490612442,0.10176,88543.0,88534.0,0.11396769]
[1769490613541,0.011307,88551.0,88534.0,0.11396769]
[1769490613738,0.011307,88547.0,88534.0,0.11396769]
[1769490614040,0.011307,88550.0,88534.0,0.11396769]
[1769490618829,0.21995965,88553.0,88534.0,0.11396769]
[1769490619445,0.011307,88549.0,88534.0,0.11396769]
[1769490624347,0.21995965,88553.0,88534.0,0.11396769]
[1769490625331,0.011307,88550.0,88534.0,0.11396769]
[1769490626346,0.011307,88551.0,88534.0,0.11396769]
[1769490628647,0.011307,88549.0,88534.0,0.11396769]
[1769490630349,0.11947326,88552.0,88534.0,0.11396769]
[1769490630548,0.011307,88551.0,88534.0,0.11396769]
[1769490633949,0.011307,88549.0,88534.0,0.11396769]
[1769490635552,0.011307,88547.0,88534.0,0.11396769]
[1769490635754,0.11947326,88552.0,88534.0,0.11396769]
[1769490638455,0.011307,88548.0,88534.0,0.11396769]
[1769490640155,0.011307,88551.0,88534.0,0.11396769]
[1769490640557,0.10176,88553.0,88534.0,0.11396769]
[1769490640757,0.011307,88548.0,88534.0,0.11396769]
[1769490642955,0.22123326,88553.0,88534.0,0.11396769]
[1769490643154,0.011307,88547.0,88534.0,0.11396769]
[1769490643863,0.011307,88545.0,88534.0,0.11396769]
[1769490644763,0.011308,88542.0,88534.0,0.11396769]
[1769490645864,0.011307,88545.0,88534.0,0.11396769]
[1769490646060,0.22123326,88552.0,88534.0,0.11396769]
[1769490647370,0.011308,88544.0,88534.0,0.11396769]
[1769490651159,0.011308,88542.0,88534.0,0.11396769]
[1769490651559,0.011308,88537.0,88529.0,0.10176]
[1769490653469,0.011308,88537.0,88530.0,0.06705392]
[1769490654071,0.011308,88540.0,88530.0,0.06705392]
[1769490654868,0.011308,88538.0,88530.0,0.06705392]
[1769490655071,0.11947326,88545.0,88530.0,0.06705392]
[1769490655269,0.011308,88542.0,88530.0,0.06705392]
[1769490655969,0.011308,88540.0,88530.0,0.06705392]
[1769490656175,0.011308,88539.0,88530.0,0.06705392]
[1769490657267,0.011308,88542.0,88530.0,0.06705392]
[1769490658668,0.11210383,88549.0,88530.0,0.06705392]
[1769490659576,0.11210383,88548.0,88530.0,0.06705392]
[1769490661473,0.011308,88540.0,88530.0,0.06705392]
[1769490663866,0.011308,88543.0,88530.0,0.06705392]
[1769490665579,0.011308,88541.0,88530.0,0.06705392]
[1769490666075,0.11210383,88546.0,88530.0,0.06705392]
[1769490666779,0.011308,88541.0,88530.0,0.06705392]
[1769490669276,0.11210383,88546.0,88530.0,0.06705392]
[1769490670289,0.011308,88541.0,88530.0,0.06705392]
[1769490679985,0.11210383,88546.0,88526.0,0.0904916]
[1769490679986,0.011308,88538.0,88526.0,0.0904916]
[1769490680288,0.011308,88538.0,88527.0,0.06957816]
[1769490682189,0.011308,88541.0,88527.0,0.06957816]
[1769490690291,0.011308,88542.0,88527.0,0.06957816]
[1769490690897,0.011308,88541.0,88527.0,0.06957816]
[1769490691096,0.10873923,88547.0,88527.0,0.06957816]
[1769490691499,0.011308,88537.0,88527.0,0.06957816]
[1769490692996,0.011308,88540.0,88527.0,0.06957816]
[1769490693702,0.011308,88538.0,88527.0,0.06957816]
[1769490695599,0.011308,88538.0,88523.0,0.19879664]
[1769490695806,0.011308,88538.0,88524.0,0.06310807]
[1769490696606,0.011309,88536.0,88524.0,0.06310807]
[1769490700911,0.011309,88534.0,88524.0,0.06310807]
[1769490701306,0.011309,88534.0,88526.0,0.06405752]
[1769490702513,0.011309,88534.0,88523.0,0.00652645]
[1769490702514,0.11999982,88537.0,88523.0,4.5e-07]
[1769490702719,0.11999982,88537.0,88515.0,0.10176]
[1769490703804,0.11993628,88521.0,88508.0,2.497e-05]
[1769490704025,0.11993628,88515.0,88492.0,0.1355921]
[1769490704226,0.11993628,88515.0,88491.0,0.10176]
[1769490704227,0.10176,88515.0,88491.0,0.10176]
[1769490704416,0.011312,88510.0,88492.0,0.00019113]
[1769490704622,0.13124728,88514.0,88492.0,0.011314]
[1769490704821,0.11993628,88514.0,88491.0,0.113074]
[1769490705030,0.011312,88512.0,88494.0,0.011314]
[1769490705331,9.02e-05,88513.0,88491.0,0.10176]
[1769490705529,9.02e-05,88513.0,88500.0,0.16323508]
[1769490706327,0.1200902,88513.0,88500.0,0.16323508]
[1769490707124,0.1314022,88513.0,88500.0,0.16323508]
[1769490707439,0.011312,88510.0,88500.0,0.16323508]
[1769490707736,0.131313,88505.0,88491.0,0.10176]
[1769490708233,0.12,88505.0,88491.0,0.10176]
[1769490709137,0.131312,88509.0,88491.0,0.10176]
[1769490710132,0.011312,88507.0,88491.0,0.10176]
[1769490710338,0.011312,88505.0,88491.0,0.10176]
[1769490711034,0.131312,88509.0,88491.0,0.10176]
[1769490712132,0.011312,88506.0,88491.0,0.10176]
[1769490712339,0.131312,88506.0,88491.0,0.10176]
[1769490713536,0.011313,88504.0,88491.0,0.10176]
[1769490714040,0.011313,88504.0,88490.0,0.16323508]